[Event "Titled Tuesday Blitz October 25 Late 2022"]
[White "Toncheva, Nadya"]
[Black "Boruchovsky, Avital"]
[WhiteFideId "2924056"]
[BlackFideId "2800055"]
[WhiteElo "2101"]
[BlackElo "2466"]
[Result "0-1"]
[Round "03"]
[TimeControl "180+1"]
[Date "2022.10.26"]
[WhiteClock "0:00:02"]
[BlackClock "0:00:48"]

1. d4 {[%clk 0:03:00]}  Nf6 {[%clk 0:02:57]} 2. c4 {[%clk 0:03:01]}  e6 {[%clk 0:02:57]} 3. Nc3 {[%clk 0:03:01]}  Bb4 {[%clk 0:02:57]} 4. e3 {[%clk 0:03:01]}  O-O {[%clk 0:02:57]} 5. Ne2 {[%clk 0:03:01]}  Re8 {[%clk 0:02:56]} 6. a3 {[%clk 0:02:59]}  Bf8 {[%clk 0:02:57]} 7. Ng3 {[%clk 0:03:00]}  d5 {[%clk 0:02:55]} 8. f4 {[%clk 0:02:59]}  b6 {[%clk 0:02:53]} 9. Bd3 {[%clk 0:02:59]}  c5 {[%clk 0:02:53]} 10. cxd5 {[%clk 0:02:49]}  exd5 {[%clk 0:02:53]} 11. O-O {[%clk 0:02:45]}  Nc6 {[%clk 0:02:52]} 12. Bb5 {[%clk 0:02:14]}  Bb7 {[%clk 0:02:50]} 13. Qf3 {[%clk 0:01:56]}  a6 {[%clk 0:02:37]} 14. Bxc6 {[%clk 0:01:56]}  Bxc6 {[%clk 0:02:38]} 15. Bd2 {[%clk 0:01:53]}  Ne4 {[%clk 0:02:34]} 16. Be1 {[%clk 0:01:29]}  Qf6 {[%clk 0:02:25]} 17. Rd1 {[%clk 0:01:27]}  Nxc3 {[%clk 0:02:10]} 18. Bxc3 {[%clk 0:01:21]}  c4 {[%clk 0:02:10]} 19. Rde1 {[%clk 0:01:16]}  a5 {[%clk 0:02:09]} 20. Nh5 {[%clk 0:01:11]}  Qf5 {[%clk 0:02:05]} 21. g4 {[%clk 0:01:05]}  Qe4 {[%clk 0:02:01]} 22. f5 {[%clk 0:00:59]}  Qxf3 {[%clk 0:01:58]} 23. Rxf3 {[%clk 0:01:00]}  b5 {[%clk 0:01:58]} 24. Bd2 {[%clk 0:00:36]}  b4 {[%clk 0:01:56]} 25. axb4 {[%clk 0:00:26]}  axb4 {[%clk 0:01:57]} 26. g5 {[%clk 0:00:25]}  Ra2 {[%clk 0:01:54]} 27. Bc1 {[%clk 0:00:25]}  c3 {[%clk 0:01:37]} 28. bxc3 {[%clk 0:00:24]}  bxc3 {[%clk 0:01:38]} 29. e4 {[%clk 0:00:25]}  dxe4 {[%clk 0:01:34]} 30. Rfe3 {[%clk 0:00:17]}  Rd8 {[%clk 0:01:21]} 31. f6 {[%clk 0:00:12]}  g6 {[%clk 0:01:15]} 32. Ng3 {[%clk 0:00:08]}  Rxd4 {[%clk 0:01:15]} 33. Rxc3 {[%clk 0:00:07]}  Bb7 {[%clk 0:01:00]} 34. Rc7 {[%clk 0:00:06]}  Rb4 {[%clk 0:01:00]} 35. Be3 {[%clk 0:00:05]}  Rbb2 {[%clk 0:00:55]} 36. h4 {[%clk 0:00:02]}  Rg2+ {[%clk 0:00:53]} 37. Kh1 {[%clk 0:00:02]}  Rh2+ {[%clk 0:00:52]} 38. Kg1 {[%clk 0:00:02]}  Rag2+ {[%clk 0:00:52]} 39. Kf1 {[%clk 0:00:01]}  Ba6+ {[%clk 0:00:52]} 40. Ne2 {[%clk 0:00:02]}  Bxe2+ {[%clk 0:00:51]} 41. Rxe2 {[%clk 0:00:02]}  Rxe2 {[%clk 0:00:52]} 42. Bc5 {[%clk 0:00:02]}  Rc2 {[%clk 0:00:48]} 43. Rc8 {[%clk 0:00:02]} 0-1


[Site "https://www.chess.com"]

[Event "Titled Tuesday Blitz October 25 Late 2022"]
[White "Wieczorek, Oskar"]
[Black "Deac, Bogdan-Daniel"]
[WhiteFideId "1133950"]
[BlackFideId "1226380"]
[WhiteElo "2404"]
[BlackElo "2648"]
[Result "1/2-1/2"]
[Round "03"]
[TimeControl "180+1"]
[Date "2022.10.26"]
[WhiteClock "0:00:11"]
[BlackClock "0:00:04"]

1. e4 {[%clk 0:03:00]}  e5 {[%clk 0:02:58]} 2. Nf3 {[%clk 0:03:01]}  Nc6 {[%clk 0:02:59]} 3. Nc3 {[%clk 0:03:01]}  Nf6 {[%clk 0:02:58]} 4. h3 {[%clk 0:03:02]}  g6 {[%clk 0:02:57]} 5. Bc4 {[%clk 0:03:01]}  Bg7 {[%clk 0:02:56]} 6. d3 {[%clk 0:03:01]}  d6 {[%clk 0:02:55]} 7. a4 {[%clk 0:03:02]}  h6 {[%clk 0:02:52]} 8. a5 {[%clk 0:03:02]}  a6 {[%clk 0:02:52]} 9. O-O {[%clk 0:03:03]}  O-O {[%clk 0:02:52]} 10. Re1 {[%clk 0:02:59]}  Re8 {[%clk 0:02:52]} 11. Be3 {[%clk 0:02:53]}  Be6 {[%clk 0:02:45]} 12. Bxe6 {[%clk 0:02:53]}  Rxe6 {[%clk 0:02:46]} 13. Nd5 {[%clk 0:02:42]}  Nd7 {[%clk 0:02:33]} 14. Qd2 {[%clk 0:02:36]}  Kh7 {[%clk 0:02:32]} 15. c4 {[%clk 0:02:35]}  Nd4 {[%clk 0:02:27]} 16. Bxd4 {[%clk 0:02:14]}  exd4 {[%clk 0:02:26]} 17. b4 {[%clk 0:02:15]}  g5 {[%clk 0:02:06]} 18. Nh2 {[%clk 0:01:46]}  c6 {[%clk 0:01:55]} 19. Nb6 {[%clk 0:01:46]}  Nxb6 {[%clk 0:01:55]} 20. axb6 {[%clk 0:01:47]}  Qxb6 {[%clk 0:01:28]} 21. f4 {[%clk 0:01:47]}  gxf4 {[%clk 0:01:24]} 22. Qxf4 {[%clk 0:01:48]}  Qxb4 {[%clk 0:01:23]} 23. Ng4 {[%clk 0:01:26]}  Re7 {[%clk 0:01:11]} 24. Rf1 {[%clk 0:01:05]}  Qc5 {[%clk 0:01:02]} 25. Qg3 {[%clk 0:01:02]}  d5 {[%clk 0:00:29]} 26. Rf5 {[%clk 0:01:02]}  Rf8 {[%clk 0:00:19]} 27. Raf1 {[%clk 0:00:59]}  Qb4 {[%clk 0:00:14]} 28. cxd5 {[%clk 0:00:56]}  cxd5 {[%clk 0:00:14]} 29. Qh4 {[%clk 0:00:46]}  dxe4 {[%clk 0:00:08]} 30. Rf6 {[%clk 0:00:35]}  Re6 {[%clk 0:00:06]} 31. Nxh6 {[%clk 0:00:24]}  Bxh6 {[%clk 0:00:06]} 32. Qxh6+ {[%clk 0:00:21]}  Kg8 {[%clk 0:00:06]} 33. Qg5+ {[%clk 0:00:18]}  Kh7 {[%clk 0:00:05]} 34. Qh5+ {[%clk 0:00:17]}  Kg7 {[%clk 0:00:04]} 35. Qh6+ {[%clk 0:00:14]}  Kg8 {[%clk 0:00:04]} 36. Rxe6 {[%clk 0:00:14]}  fxe6 {[%clk 0:00:04]} 37. Qxe6+ {[%clk 0:00:15]}  Kh8 {[%clk 0:00:04]} 38. Qe5+ {[%clk 0:00:14]}  Kg8 {[%clk 0:00:04]} 39. Qg5+ {[%clk 0:00:14]}  Kh8 {[%clk 0:00:04]} 40. Qh6+ {[%clk 0:00:14]}  Kg8 {[%clk 0:00:04]} 41. Qg6+ {[%clk 0:00:15]}  Kh8 {[%clk 0:00:05]} 42. Qh5+ {[%clk 0:00:09]}  Kg8 {[%clk 0:00:04]} 43. Qd5+ {[%clk 0:00:09]}  Kh8 {[%clk 0:00:04]} 44. Qe5+ {[%clk 0:00:10]}  Kg8 {[%clk 0:00:04]} 45. Qe6+ {[%clk 0:00:10]}  Kh8 {[%clk 0:00:04]} 46. Qh6+ {[%clk 0:00:10]}  Kg8 {[%clk 0:00:04]} 47. Qg6+ {[%clk 0:00:11]}  Kh8 {[%clk 0:00:04]} 48. Qh6+ {[%clk 0:00:11]} 1/2-1/2


[Site "https://www.chess.com"]

[Event "Titled Tuesday Blitz October 25 Late 2022"]
[White "Wiegmann, Sascha"]
[Black "Krastev, Alexander"]
[WhiteFideId "4682041"]
[BlackFideId "12989983"]
[WhiteElo "2293"]
[BlackElo "2497"]
[Result "0-1"]
[Round "03"]
[TimeControl "180+1"]
[Date "2022.10.26"]
[WhiteClock "0:00:11"]
[BlackClock "0:01:46"]

1. Nf3 {[%clk 0:02:59]}  g6 {[%clk 0:02:53]} 2. g3 {[%clk 0:03:00]}  Bg7 {[%clk 0:02:54]} 3. Bg2 {[%clk 0:03:00]}  c5 {[%clk 0:02:54]} 4. O-O {[%clk 0:03:00]}  Nc6 {[%clk 0:02:54]} 5. e4 {[%clk 0:03:01]}  e6 {[%clk 0:02:54]} 6. c3 {[%clk 0:02:57]}  Nge7 {[%clk 0:02:54]} 7. d4 {[%clk 0:02:57]}  cxd4 {[%clk 0:02:55]} 8. cxd4 {[%clk 0:02:58]}  d5 {[%clk 0:02:55]} 9. e5 {[%clk 0:02:58]}  O-O {[%clk 0:02:54]} 10. h4 {[%clk 0:02:57]}  Nf5 {[%clk 0:02:53]} 11. Nc3 {[%clk 0:02:49]}  f6 {[%clk 0:02:47]} 12. exf6 {[%clk 0:02:13]}  Qxf6 {[%clk 0:02:37]} 13. Bg5 {[%clk 0:02:02]}  Qf7 {[%clk 0:02:33]} 14. Ne2 {[%clk 0:01:59]}  b6 {[%clk 0:02:17]} 15. Re1 {[%clk 0:01:42]}  Ba6 {[%clk 0:02:15]} 16. Nc3 {[%clk 0:00:36]}  Nfxd4 {[%clk 0:02:04]} 17. Nxd4 {[%clk 0:00:32]}  Nxd4 {[%clk 0:01:54]} 18. Be3 {[%clk 0:00:15]}  Nf5 {[%clk 0:01:52]} 19. Qd2 {[%clk 0:00:11]}  d4 {[%clk 0:01:46]} 0-1


[Site "https://www.chess.com"]

[Event "Titled Tuesday Blitz October 25 Late 2022"]
[White "Yanayt, Eugene"]
[Black "chess50years"]
[WhiteFideId "2020165"]
[WhiteElo "2046"]
[BlackElo "1199"]
[Result "1-0"]
[Round "03"]
[TimeControl "180+1"]
[Date "2022.10.26"]
[WhiteClock "0:01:38"]
[BlackClock "0:01:01"]

1. e4 {[%clk 0:03:00]}  d6 {[%clk 0:02:59]} 2. d4 {[%clk 0:02:55]}  g6 {[%clk 0:02:59]} 3. h4 {[%clk 0:02:53]}  h6 {[%clk 0:02:54]} 4. h5 {[%clk 0:02:50]}  g5 {[%clk 0:02:54]} 5. f4 {[%clk 0:02:50]}  gxf4 {[%clk 0:02:53]} 6. Nh3 {[%clk 0:02:47]}  Bxh3 {[%clk 0:02:44]} 7. Rxh3 {[%clk 0:02:46]}  d5 {[%clk 0:02:38]} 8. exd5 {[%clk 0:02:36]}  Qxd5 {[%clk 0:02:35]} 9. Bxf4 {[%clk 0:02:32]}  Nc6 {[%clk 0:02:26]} 10. c3 {[%clk 0:02:25]}  O-O-O {[%clk 0:02:07]} 11. Nd2 {[%clk 0:02:23]}  e5 {[%clk 0:02:04]} 12. Qg4+ {[%clk 0:02:13]}  Kb8 {[%clk 0:02:00]} 13. Bc4 {[%clk 0:02:11]}  Qd6 {[%clk 0:01:22]} 14. Bh2 {[%clk 0:02:07]}  Nf6 {[%clk 0:01:17]} 15. Qe2 {[%clk 0:01:58]}  Nxd4 {[%clk 0:01:02]} 16. cxd4 {[%clk 0:01:57]}  Qxd4 {[%clk 0:01:03]} 17. Rd3 {[%clk 0:01:38]}  Qh4+ {[%clk 0:01:01]} 18. g3 {[%clk 0:01:38]} 1-0


[Site "https://www.chess.com"]

[Event "Titled Tuesday Blitz October 25 Late 2022"]
[White "Yedidia, Daniel"]
[Black "Levine, David"]
[WhiteFideId "30905907"]
[BlackFideId "2011611"]
[WhiteElo "2547"]
[BlackElo "2234"]
[Result "1-0"]
[Round "03"]
[TimeControl "180+1"]
[Date "2022.10.26"]
[WhiteClock "0:00:53"]
[BlackClock "0:00:17"]

1. d4 {[%clk 0:03:00]}  d5 {[%clk 0:02:59]} 2. c4 {[%clk 0:03:00]}  dxc4 {[%clk 0:02:58]} 3. Nf3 {[%clk 0:03:01]}  Nf6 {[%clk 0:02:56]} 4. e3 {[%clk 0:03:00]}  e6 {[%clk 0:02:54]} 5. Bxc4 {[%clk 0:02:59]}  c5 {[%clk 0:02:53]} 6. O-O {[%clk 0:02:55]}  a6 {[%clk 0:02:53]} 7. Nc3 {[%clk 0:02:49]}  b5 {[%clk 0:02:50]} 8. Be2 {[%clk 0:02:48]}  cxd4 {[%clk 0:02:47]} 9. exd4 {[%clk 0:02:41]}  Bb7 {[%clk 0:02:46]} 10. Ne5 {[%clk 0:02:38]}  Be7 {[%clk 0:02:41]} 11. Bf3 {[%clk 0:02:33]}  Nd5 {[%clk 0:02:30]} 12. Ne4 {[%clk 0:02:24]}  O-O {[%clk 0:02:28]} 13. Nc5 {[%clk 0:02:17]}  Bc8 {[%clk 0:02:17]} 14. b4 {[%clk 0:01:54]}  Ra7 {[%clk 0:02:08]} 15. a4 {[%clk 0:01:50]}  Nxb4 {[%clk 0:01:52]} 16. axb5 {[%clk 0:01:49]}  a5 {[%clk 0:01:45]} 17. Be3 {[%clk 0:01:18]}  Nd5 {[%clk 0:01:35]} 18. Qb3 {[%clk 0:01:08]}  Qb6 {[%clk 0:01:31]} 19. Nc4 {[%clk 0:01:00]}  Qd8 {[%clk 0:01:04]} 20. b6 {[%clk 0:00:58]}  Rb7 {[%clk 0:00:37]} 21. Nxb7 {[%clk 0:00:53]}  Bxb7 {[%clk 0:00:36]} 22. Nxa5 {[%clk 0:00:53]}  Qd7 {[%clk 0:00:20]} 23. Nxb7 {[%clk 0:00:53]}  Qxb7 {[%clk 0:00:20]} 24. Ra7 {[%clk 0:00:53]}  Qxb6 {[%clk 0:00:17]} 25. Qxb6 {[%clk 0:00:53]}  Nxb6 {[%clk 0:00:17]} 26. Rxe7 {[%clk 0:00:53]} 1-0


[Site "https://www.chess.com"]

[Event "Titled Tuesday Blitz October 25 Late 2022"]
[White "Yeletsky, Ivan"]
[Black "Thomforde-Toates, Noah"]
[WhiteFideId "24180327"]
[BlackFideId "30951992"]
[WhiteElo "2391"]
[BlackElo "2663"]
[Result "1-0"]
[Round "03"]
[TimeControl "180+1"]
[Date "2022.10.26"]
[WhiteClock "0:01:55"]
[BlackClock "0:01:55"]

1. e4 {[%clk 0:02:53]}  c5 {[%clk 0:02:57]} 2. Na3 {[%clk 0:02:43]}  a6 {[%clk 0:02:55]} 3. c3 {[%clk 0:02:40]}  Nf6 {[%clk 0:02:52]} 4. e5 {[%clk 0:02:38]}  Nd5 {[%clk 0:02:52]} 5. g3 {[%clk 0:02:38]}  Nc6 {[%clk 0:02:52]} 6. Bg2 {[%clk 0:02:38]}  e6 {[%clk 0:02:52]} 7. Nf3 {[%clk 0:02:38]}  d6 {[%clk 0:02:51]} 8. exd6 {[%clk 0:02:37]}  Bxd6 {[%clk 0:02:51]} 9. O-O {[%clk 0:02:37]}  O-O {[%clk 0:02:50]} 10. Nc4 {[%clk 0:02:35]}  Bc7 {[%clk 0:02:50]} 11. a4 {[%clk 0:02:34]}  Rb8 {[%clk 0:02:49]} 12. d4 {[%clk 0:02:33]}  b5 {[%clk 0:02:48]} 13. axb5 {[%clk 0:02:34]}  axb5 {[%clk 0:02:49]} 14. Nce5 {[%clk 0:02:32]}  Nxe5 {[%clk 0:02:48]} 15. Nxe5 {[%clk 0:02:33]}  Bb7 {[%clk 0:02:42]} 16. Re1 {[%clk 0:02:16]}  cxd4 {[%clk 0:02:37]} 17. Qxd4 {[%clk 0:02:14]}  Bb6 {[%clk 0:02:35]} 18. Qg4 {[%clk 0:02:14]}  Nf6 {[%clk 0:02:34]} 19. Qe2 {[%clk 0:02:14]}  Bxg2 {[%clk 0:02:33]} 20. Kxg2 {[%clk 0:02:15]}  Qd5+ {[%clk 0:02:33]} 21. Qf3 {[%clk 0:02:15]}  Rfd8 {[%clk 0:02:29]} 22. Nc6 {[%clk 0:02:14]}  Qc4 {[%clk 0:02:18]} 23. Nxb8 {[%clk 0:02:08]}  Rxb8 {[%clk 0:02:17]} 24. Ra8 {[%clk 0:02:07]}  Qc8 {[%clk 0:02:11]} 25. Rxb8 {[%clk 0:02:07]}  Qxb8 {[%clk 0:02:11]} 26. Bf4 {[%clk 0:02:08]}  Qf8 {[%clk 0:02:07]} 27. Ra1 {[%clk 0:02:08]}  Nd5 {[%clk 0:02:06]} 28. Be5 {[%clk 0:02:03]}  h6 {[%clk 0:02:02]} 29. Qg4 {[%clk 0:01:59]}  g6 {[%clk 0:01:59]} 30. Bd4 {[%clk 0:01:56]}  Bxd4 {[%clk 0:01:55]} 31. Qxd4 {[%clk 0:01:56]}  Qd6 {[%clk 0:01:55]} 32. Ra8+ {[%clk 0:01:54]}  Kh7 {[%clk 0:01:55]} 33. Rh8# {[%clk 0:01:55]} 1-0


[Site "https://www.chess.com"]

[Event "Titled Tuesday Blitz October 25 Late 2022"]
[White "Yeritsyan, Hayk"]
[Black "Lewicki, Miroslaw"]
[WhiteFideId "13307320"]
[BlackFideId "1113380"]
[WhiteElo "2411"]
[BlackElo "2236"]
[Result "0-1"]
[Round "03"]
[TimeControl "180+1"]
[Date "2022.10.26"]
[WhiteClock "0:00:46"]
[BlackClock "0:01:13"]

1. d4 {[%clk 0:03:00]}  b6 {[%clk 0:02:59]} 2. Nf3 {[%clk 0:03:00]}  Bb7 {[%clk 0:02:59]} 3. Bf4 {[%clk 0:03:01]}  Nf6 {[%clk 0:02:59]} 4. e3 {[%clk 0:03:01]}  g6 {[%clk 0:03:00]} 5. h3 {[%clk 0:03:01]}  Bg7 {[%clk 0:03:00]} 6. Be2 {[%clk 0:03:02]}  O-O {[%clk 0:03:01]} 7. c3 {[%clk 0:03:02]}  c5 {[%clk 0:03:01]} 8. O-O {[%clk 0:03:03]}  d5 {[%clk 0:03:02]} 9. Bh2 {[%clk 0:03:02]}  Nbd7 {[%clk 0:03:03]} 10. Na3 {[%clk 0:03:01]}  a6 {[%clk 0:02:54]} 11. Rc1 {[%clk 0:03:01]}  b5 {[%clk 0:02:50]} 12. b4 {[%clk 0:02:57]}  c4 {[%clk 0:02:49]} 13. Nb1 {[%clk 0:02:55]}  Ne4 {[%clk 0:02:44]} 14. a4 {[%clk 0:02:54]}  bxa4 {[%clk 0:02:42]} 15. Nbd2 {[%clk 0:02:51]}  a5 {[%clk 0:02:36]} 16. Qxa4 {[%clk 0:02:45]}  Nb6 {[%clk 0:02:34]} 17. Qa3 {[%clk 0:02:35]}  Nxd2 {[%clk 0:02:02]} 18. Nxd2 {[%clk 0:02:35]}  a4 {[%clk 0:02:03]} 19. Nb1 {[%clk 0:02:31]}  Re8 {[%clk 0:01:49]} 20. Qb2 {[%clk 0:02:29]}  e5 {[%clk 0:01:49]} 21. Na3 {[%clk 0:02:30]}  exd4 {[%clk 0:01:49]} 22. exd4 {[%clk 0:02:31]}  Qg5 {[%clk 0:01:45]} 23. Bf3 {[%clk 0:02:24]}  Re6 {[%clk 0:01:42]} 24. Rfe1 {[%clk 0:02:13]}  Rae8 {[%clk 0:01:42]} 25. Rxe6 {[%clk 0:02:13]}  Rxe6 {[%clk 0:01:43]} 26. Qc2 {[%clk 0:02:02]}  Bc8 {[%clk 0:01:39]} 27. Bg3 {[%clk 0:01:54]}  h5 {[%clk 0:01:37]} 28. h4 {[%clk 0:01:44]}  Qe7 {[%clk 0:01:36]} 29. Qd2 {[%clk 0:01:40]}  Kh7 {[%clk 0:01:32]} 30. Rd1 {[%clk 0:01:25]}  Bh6 {[%clk 0:01:31]} 31. Bf4 {[%clk 0:01:14]}  Bg7 {[%clk 0:01:31]} 32. g3 {[%clk 0:01:09]}  Qe8 {[%clk 0:01:15]} 33. Kf1 {[%clk 0:01:04]}  Re7 {[%clk 0:01:14]} 34. Re1 {[%clk 0:01:01]}  Bh3+ {[%clk 0:01:14]} 35. Bg2 {[%clk 0:00:49]}  Rxe1+ {[%clk 0:01:13]} 36. Qxe1 {[%clk 0:00:46]}  Bxg2+ {[%clk 0:01:13]} 0-1


[Site "https://www.chess.com"]

[Event "Titled Tuesday Blitz October 25 Late 2022"]
[White "Yuan, Qingyu"]
[Black "Barbero Sendic, Alejandro"]
[WhiteFideId "8609772"]
[BlackFideId "3001288"]
[WhiteElo "2359"]
[BlackElo "2314"]
[Result "1-0"]
[Round "03"]
[TimeControl "180+1"]
[Date "2022.10.26"]
[WhiteClock "0:00:04"]
[BlackClock "0:00:04"]

1. d4 {[%clk 0:03:00]}  g6 {[%clk 0:03:00]} 2. e4 {[%clk 0:02:59]}  Bg7 {[%clk 0:03:00]} 3. Nf3 {[%clk 0:02:56]}  d6 {[%clk 0:03:00]} 4. h3 {[%clk 0:02:50]}  Nf6 {[%clk 0:02:59]} 5. Bd3 {[%clk 0:02:50]}  Nc6 {[%clk 0:02:55]} 6. c3 {[%clk 0:02:46]}  e5 {[%clk 0:02:53]} 7. O-O {[%clk 0:02:40]}  exd4 {[%clk 0:02:50]} 8. cxd4 {[%clk 0:02:40]}  O-O {[%clk 0:02:51]} 9. Nc3 {[%clk 0:02:39]}  Re8 {[%clk 0:02:38]} 10. Re1 {[%clk 0:02:39]}  Nh5 {[%clk 0:02:36]} 11. Bg5 {[%clk 0:02:29]}  Bf6 {[%clk 0:02:33]} 12. Be3 {[%clk 0:02:29]}  Bg7 {[%clk 0:02:13]} 13. Rc1 {[%clk 0:02:28]}  Nb4 {[%clk 0:02:10]} 14. Bb1 {[%clk 0:02:26]}  c6 {[%clk 0:02:07]} 15. a3 {[%clk 0:02:21]}  Na6 {[%clk 0:02:07]} 16. Bg5 {[%clk 0:02:11]}  Qb6 {[%clk 0:01:59]} 17. Qd2 {[%clk 0:02:07]}  Bd7 {[%clk 0:01:53]} 18. b4 {[%clk 0:02:04]}  Nc7 {[%clk 0:01:30]} 19. Bd3 {[%clk 0:01:36]}  a6 {[%clk 0:01:27]} 20. Bf1 {[%clk 0:01:22]}  Nb5 {[%clk 0:01:24]} 21. g4 {[%clk 0:01:00]}  Nf6 {[%clk 0:01:24]} 22. Qf4 {[%clk 0:00:34]}  Nxc3 {[%clk 0:01:15]} 23. Rxc3 {[%clk 0:00:33]}  Qd8 {[%clk 0:00:40]} 24. Qxd6 {[%clk 0:00:23]}  h6 {[%clk 0:00:26]} 25. Bxf6 {[%clk 0:00:23]}  Bxf6 {[%clk 0:00:26]} 26. Qf4 {[%clk 0:00:17]}  Bg7 {[%clk 0:00:24]} 27. e5 {[%clk 0:00:15]}  a5 {[%clk 0:00:25]} 28. Bc4 {[%clk 0:00:12]}  Be6 {[%clk 0:00:25]} 29. Bxe6 {[%clk 0:00:12]}  Rxe6 {[%clk 0:00:26]} 30. Kg2 {[%clk 0:00:12]}  axb4 {[%clk 0:00:26]} 31. axb4 {[%clk 0:00:12]}  Ra4 {[%clk 0:00:24]} 32. Rb3 {[%clk 0:00:11]}  Qd5 {[%clk 0:00:23]} 33. Qe3 {[%clk 0:00:11]}  f5 {[%clk 0:00:21]} 34. gxf5 {[%clk 0:00:11]}  gxf5 {[%clk 0:00:21]} 35. Kh2 {[%clk 0:00:11]}  f4 {[%clk 0:00:21]} 36. Qd3 {[%clk 0:00:11]}  Ra2 {[%clk 0:00:19]} 37. Rf1 {[%clk 0:00:08]}  b5 {[%clk 0:00:13]} 38. Ra3 {[%clk 0:00:08]}  Rxa3 {[%clk 0:00:11]} 39. Qxa3 {[%clk 0:00:09]}  Rg6 {[%clk 0:00:10]} 40. Qd3 {[%clk 0:00:06]}  Kf7 {[%clk 0:00:07]} 41. Nh4 {[%clk 0:00:04]}  Rg5 {[%clk 0:00:07]} 42. Nf3 {[%clk 0:00:04]}  Rg6 {[%clk 0:00:06]} 43. Qf5+ {[%clk 0:00:05]}  Bf6 {[%clk 0:00:04]} 44. Nh4 {[%clk 0:00:04]} 1-0


[Site "https://www.chess.com"]

[Event "Titled Tuesday Blitz October 25 Late 2022"]
[White "Aggelis, Nikolaos"]
[Black "Ali Abdullahi, Farah"]
[WhiteFideId "4213220"]
[BlackFideId "16100212"]
[WhiteElo "2187"]
[BlackElo "2216"]
[Result "1-0"]
[Round "04"]
[TimeControl "180+1"]
[Date "2022.10.26"]
[WhiteClock "0:00:27"]
[BlackClock "0:00:23"]

1. d4 {[%clk 0:03:00]}  e6 {[%clk 0:02:58]} 2. g3 {[%clk 0:02:58]}  d5 {[%clk 0:02:58]} 3. Bg2 {[%clk 0:02:58]}  c5 {[%clk 0:02:54]} 4. Nf3 {[%clk 0:02:58]}  Nc6 {[%clk 0:02:54]} 5. O-O {[%clk 0:02:57]}  Nf6 {[%clk 0:02:55]} 6. c4 {[%clk 0:02:56]}  Be7 {[%clk 0:02:55]} 7. dxc5 {[%clk 0:02:56]}  Bxc5 {[%clk 0:02:54]} 8. cxd5 {[%clk 0:02:44]}  exd5 {[%clk 0:02:54]} 9. a3 {[%clk 0:02:43]}  a6 {[%clk 0:02:52]} 10. Bg5 {[%clk 0:02:33]}  O-O {[%clk 0:02:50]} 11. Nc3 {[%clk 0:02:31]}  d4 {[%clk 0:02:45]} 12. Bxf6 {[%clk 0:02:26]}  Qxf6 {[%clk 0:02:44]} 13. Nd5 {[%clk 0:02:25]}  Qd8 {[%clk 0:02:43]} 14. Ne1 {[%clk 0:02:23]}  Re8 {[%clk 0:02:38]} 15. Nd3 {[%clk 0:02:22]}  Ba7 {[%clk 0:02:37]} 16. Rc1 {[%clk 0:02:20]}  Bg4 {[%clk 0:02:35]} 17. Re1 {[%clk 0:02:15]}  Qd7 {[%clk 0:02:15]} 18. Nc5 {[%clk 0:02:04]}  Bxc5 {[%clk 0:02:09]} 19. Rxc5 {[%clk 0:02:04]}  Rad8 {[%clk 0:02:01]} 20. Nf4 {[%clk 0:01:57]}  d3 {[%clk 0:01:56]} 21. Nxd3 {[%clk 0:01:53]}  Qxd3 {[%clk 0:01:55]} 22. exd3 {[%clk 0:01:44]}  Bxd1 {[%clk 0:01:52]} 23. Rxd1 {[%clk 0:01:40]}  Re2 {[%clk 0:01:44]} 24. Bxc6 {[%clk 0:01:33]}  bxc6 {[%clk 0:01:43]} 25. Rxc6 {[%clk 0:01:34]}  Rxb2 {[%clk 0:01:35]} 26. Rxa6 {[%clk 0:01:33]}  h5 {[%clk 0:01:34]} 27. h4 {[%clk 0:01:19]}  Rd4 {[%clk 0:01:33]} 28. a4 {[%clk 0:01:03]}  Rb3 {[%clk 0:01:30]} 29. Kf1 {[%clk 0:00:58]}  Rdxd3 {[%clk 0:01:29]} 30. Rxd3 {[%clk 0:00:59]}  Rxd3 {[%clk 0:01:29]} 31. Ke2 {[%clk 0:00:57]}  Ra3 {[%clk 0:01:29]} 32. Ra7 {[%clk 0:00:56]}  Kh7 {[%clk 0:01:28]} 33. a5 {[%clk 0:00:54]}  Kg6 {[%clk 0:01:28]} 34. a6 {[%clk 0:00:53]}  f6 {[%clk 0:01:28]} 35. Ra8 {[%clk 0:00:52]}  Kf5 {[%clk 0:01:27]} 36. Kd2 {[%clk 0:00:51]}  g5 {[%clk 0:01:27]} 37. hxg5 {[%clk 0:00:38]}  fxg5 {[%clk 0:01:26]} 38. f3 {[%clk 0:00:33]}  h4 {[%clk 0:01:11]} 39. gxh4 {[%clk 0:00:31]}  gxh4 {[%clk 0:00:56]} 40. a7 {[%clk 0:00:31]}  Kf4 {[%clk 0:00:31]} 41. Rf8+ {[%clk 0:00:30]}  Kg3 {[%clk 0:00:30]} 42. a8=Q {[%clk 0:00:30]}  Rxa8 {[%clk 0:00:30]} 43. Rxa8 {[%clk 0:00:30]}  Kxf3 {[%clk 0:00:31]} 44. Rh8 {[%clk 0:00:28]}  Kg3 {[%clk 0:00:30]} 45. Ke1 {[%clk 0:00:27]}  h3 {[%clk 0:00:28]} 46. Kf1 {[%clk 0:00:27]}  h2 {[%clk 0:00:23]} 47. Rh7 {[%clk 0:00:27]} 1-0


[Site "https://www.chess.com"]